fUST/lending_fUST_20251008
["ID","MTS","AMOUNT","RATE_DAILY","PERIOD"]
[389809708,1759857046780,-151.0,0.00024,7]
[389809710,1759857046790,-151.0,0.00024,7]
[389809712,1759857046799,-151.0,0.00024,7]
[389809714,1759857046809,-151.0,0.00024,7]
[389809716,1759857046819,-151.0,0.00024,7]
[389809718,1759857046829,-151.0,0.00024,7]
[389809720,1759857046839,-151.0,0.00024,7]
[389809722,1759857046848,-151.0,0.00024,7]
[389809724,1759857046858,-151.0,0.00024,7]
[389809726,1759857046867,-151.0,0.00024,7]
[389809728,1759857046877,-151.0,0.00024,7]
[389809730,1759857046886,-540.743678,0.00024,7]
[389809732,1759857046895,-540.743678,0.00024,7]
[389809734,1759857046906,-540.743678,0.00024,7]
[389809736,1759857046915,-540.743678,0.00024,7]
[389809738,1759857046924,-187.476666,0.00024,7]
[389809740,1759857046934,-151.0,0.00024,7]
[389809742,1759857046942,-187.476666,0.00024,7]
[389809744,1759857046952,-260.434702,0.00024,7]
[389809746,1759857046961,-151.0,0.00024,7]
[389809748,1759857046970,-187.476666,0.00024,7]
[389809750,1759857046980,-260.434702,0.00024,7]
[389809752,1759857046990,-10000.0,0.00024,7]
[389809754,1759857046999,-187.476666,0.00024,7]
[389809757,1759857047010,-260.434702,0.00024,7]
[389809759,1759857047020,-10000.0,0.00024,7]
[389809761,1759857047030,-260.434702,0.00024,7]
[389809763,1759857047039,-10000.0,0.00024,7]
[389809765,1759857047048,-10000.0,0.00024,7]
[389809767,1759857047058,-10000.0,0.00024,7]
[389809769,1759857047067,-266.71418,0.00024,7]
[389809771,1759857047077,-266.71418,0.00024,7]
[389809773,1759857047085,-266.71418,0.00024,7]
[389809775,1759857047095,-266.71418,0.00024,7]
[389809777,1759857047104,-230.591713,0.00024,7]
[389809779,1759857047113,-230.591713,0.00024,7]
[389809781,1759857047123,-230.591713,0.00024,7]
[389809783,1759857047132,-230.591713,0.00024,7]
[389809785,1759857047141,-151.0,0.00024,7]
[389809787,1759857047150,-259.104704,0.00024,7]
[389809789,1759857047159,-151.0,0.00024,7]
[389809790,1759857047168,-151.0,0.00024,7]
[389809792,1759857047178,-151.0,0.00024,7]
[389809794,1759857047187,-151.0,0.00024,7]
[389809796,1759857047196,-154.397771,0.00024,7]
[389809799,1759857047205,-151.0,0.00024,7]
[389809801,1759857047216,-152.233092,0.00024,7]
[389809803,1759857047225,-151.0,0.00024,7]
[389809805,1759857047234,-151.320484,0.00024,7]
[389809807,1759857047245,-151.0,0.00024,7]
[389809809,1759857047254,-368.524893,0.00024,7]
[389809811,1759857047264,-151.0,0.00024,7]
[389809813,1759857047273,-368.524893,0.00024,7]
[389809815,1759857047282,-209.616144,0.00024,7]
[389809817,1759857047292,-368.524893,0.00024,7]
[389809819,1759857047302,-151.0,0.00024,7]
[389809821,1759857047311,-1041.66666667,0.00024,10]
[389809823,1759857047320,-368.524893,0.00024,7]
[389809825,1759857047330,-1347.875389,0.00024,7]
[389809827,1759857047340,-151.0,0.00024,7]
[389809829,1759857047349,-1347.875389,0.00024,7]
[389809831,1759857047359,-439.288192,0.00024,7]
[389809833,1759857047368,-234.20938206,0.00024,10]
[389809835,1759857047378,-1347.875389,0.00024,7]
[389809837,1759857047387,-439.288192,0.00024,7]
[389809839,1759857047396,-1347.875389,0.00024,7]
[389809841,1759857047406,-439.288192,0.00024,7]
[389809843,1759857047416,-151.0,0.00024,7]
[389809845,1759857047426,-439.288192,0.00024,7]
[389809847,1759857047440,-151.0,0.00024,7]
[389809849,1759857047449,-151.0,0.00024,7]
[389809851,1759857047459,-182.188164,0.00024,7]
[389809853,1759857047470,-151.0,0.00024,7]
[389809855,1759857047479,-514.956947,0.00024,7]
[389809857,1759857047489,-259.823554,0.00024,7]
[389809859,1759857047499,-514.956947,0.00024,7]
[389809861,1759857047508,-514.956947,0.00024,7]
[389809863,1759857047520,-160.70339,0.00024,7]
[389809865,1759857047528,-151.0,0.00024,7]
[389809867,1759857047538,-514.956947,0.00024,7]
[389809869,1759857047548,-160.70339,0.00024,7]
[389809871,1759857047557,-151.0,0.00024,7]
[389809873,1759857047566,-160.70339,0.00024,7]
[389809875,1759857047576,-208.523985,0.00024,7]
[389809877,1759857047585,-160.70339,0.00024,7]
[389809879,1759857047595,-1257.0,0.00024002,2]
[389809881,1759857047605,-660.0,0.00024012,2]
[389809883,1759857047615,-11805.38775991,0.00024098,2]
[389809885,1759857047625,-200.0,0.000241,2]
[389809887,1759857047634,-5000.0,0.00024132,2]
[389809889,1759857047644,-695.0,0.00024136,2]
[389809891,1759857047654,-500.0,0.00024137,2]
[389809893,1759857047663,-1411.95123889,0.00024138,2]
[389809895,1759857047672,-162.0,0.00024157,3]
[389809897,1759857047682,-162.0,0.00024157,3]
[389809899,1759857047691,-152.0,0.00024157,3]
[389809901,1759857047699,-152.0,0.00024157,3]
[389809903,1759857047708,-500.0,0.00024164,2]
[389809905,1759857047718,-307.1856986,0.00024164,2]
[389809907,1759857047727,-869.67,0.00024173,5]
[389809909,1759857047736,-819.27441786,0.00024175,2]
[389809911,1759857047746,-168.0,0.00024176,2]
[389809913,1759857047756,-1121.0,0.00024177,2]
[389809915,1759857047766,-153.151123,0.00024177,7]
[389809917,1759857047775,-1387.82681699,0.000242,2]
[389809919,1759857047784,-800.0,0.00024207,2]
[389809921,1759857047794,-695.0,0.00024235,2]
[389809923,1759857047803,-190.0,0.0002424,9]
[389809925,1759857047813,-689.799262,0.00024247,15]
[389809927,1759857047823,-1257.0,0.00024256,2]
[389809929,1759857047833,-153.151123,0.00024265,3]
[389809931,1759857047843,-500.0,0.00024284,2]
[389809934,1759857047855,-500.0,0.0002432,9]
[389809936,1759857047865,-695.0,0.0002434,2]
[389809938,1759857047874,-500.0,0.00024352,9]
[389809940,1759857047883,-1512.451347,0.0002436,5]
[389809942,1759857047892,-1000.0,0.0002438,5]
[389809944,1759857047901,-1257.0,0.00024389,2]
[389809946,1759857047911,-2000.0,0.000244,2]
[389809948,1759857047920,-2000.0,0.000244,2]
[389809950,1759857047929,-277.0,0.000244,2]
[389809952,1759857047939,-2000.0,0.000244,2]
[389809954,1759857047949,-1387.82681699,0.000244,2]
[389809956,1759857047958,-1000.0,0.000244,5]
[389809958,1759857047969,-1000.0,0.000244,2]
[389809960,1759857047979,-250.0,0.000244,10]
[389809962,1759857047990,-193.552438,0.000244,2]
[389809964,1759857047999,-429.0,0.000244,2]
[389809966,1759857048009,-1000.0,0.0002442,5]
[389809968,1759857048018,-1000.0,0.00024421,2]
[389809970,1759857048029,-632.93063219,0.00024421,2]
[389809972,1759857048039,-1000.0,0.00024421,2]
[389809974,1759857048048,-1000.0,0.00024421,2]
[389809976,1759857048058,-3500.0,0.00024431,2]
[389809978,1759857048067,-1000.0,0.0002444,5]
[389809980,1759857048077,-864.0,0.00024445,20]
[389809983,1759857048086,-869.67,0.00024447,5]
[389809985,1759857048096,-1000.0,0.0002446,5]
[389809987,1759857048106,-151.0,0.00024464,2]
[389809989,1759857048115,-500.0,0.00024464,2]
[389809991,1759857048125,-151.0,0.00024464,2]
[389809993,1759857048135,-151.0,0.00024464,2]
[389809995,1759857048144,-151.0,0.00024464,2]
[389809997,1759857048154,-151.0,0.00024464,2]
[389809999,1759857048163,-151.0,0.00024464,2]
[389810001,1759857048173,-151.0,0.00024464,2]
[389810003,1759857048181,-151.0,0.00024464,2]
[389810005,1759857048191,-151.0,0.00024464,2]
[389810007,1759857048200,-151.0,0.00024464,2]
[389810009,1759857048210,-151.0,0.00024464,2]
[389810011,1759857048219,-215.13416699,0.00024464,2]
[389810013,1759857048228,-206.92620056,0.00024464,2]
[389810015,1759857048239,-151.0,0.00024464,2]
[389810017,1759857048249,-500.0,0.00024464,2]
[389810019,1759857048258,-151.0,0.00024464,2]
[389810021,1759857048268,-500.0,0.00024464,2]
[389810023,1759857048277,-151.0,0.00024464,2]
[389810025,1759857048286,-151.0,0.00024464,2]
[389810027,1759857048296,-500.0,0.00024464,2]
[389810029,1759857048305,-1298.0,0.00024464,2]
[389810031,1759857048315,-151.0,0.00024464,2]
[389810033,1759857048324,-151.29688684,0.00024464,2]
[389810035,1759857048334,-282.98338304,0.00024464,2]
[389810037,1759857048343,-151.0,0.00024464,2]
[389810039,1759857048353,-151.0,0.00024464,2]
[389810041,1759857048362,-151.0,0.00024464,2]
[389810043,1759857048372,-500.0,0.00024464,2]
[389810045,1759857048382,-500.0,0.00024464,2]
[389810047,1759857048392,-151.0,0.00024464,2]
[389810049,1759857048401,-500.0,0.00024464,2]
[389810051,1759857048410,-151.0,0.00024464,2]
[389810053,1759857048419,-151.0,0.00024464,2]
[389810055,1759857048429,-500.0,0.00024464,2]
[389810057,1759857048443,-151.0,0.00024464,2]
[389810059,1759857048452,-151.0,0.00024464,2]
[389810061,1759857048461,-151.0,0.00024464,2]
[389810063,1759857048471,-151.0,0.00024464,2]
[389810065,1759857048482,-500.0,0.00024464,2]
[389810067,1759857048493,-500.0,0.00024464,2]
[389810069,1759857048502,-410.29864639,0.00024464,2]
[389810071,1759857048514,-1641.19458557,0.00024464,2]
[389810073,1759857048524,-151.0,0.00024474,7]
[389810075,1759857048534,-1000.0,0.0002448,5]
[389810077,1759857048546,-800.0,0.00024496,2]
[389810079,1759857048555,-297.6412454,0.00024496,2]
[389810081,1759857048565,-162.7393299,0.00024496,2]
[389810083,1759857048574,-234.20938206,0.00024499,3]
[389810085,1759857048584,-533.72506543,0.00024499,3]
[389810087,1759857048594,-402.02512307,0.00024499,3]
[389810088,1759857048603,-24876.68995724,0.000245,22]
[389810089,1759857048612,-260.73,0.000245,15]
[389810090,1759857048622,-234.20938206,0.000245,7]
[389810091,1759857048631,-160.0,0.000245,3]
[389810092,1759857048641,-1000.0,0.000245,5]
[389810093,1759857048651,-153.151123,0.000245,22]
[389810094,1759857048660,-153.151123,0.000245,22]
[389810095,1759857048669,-153.151123,0.000245,22]
[389810096,1759857048738,-250.0,0.000245,10]
[389810097,1759857048749,-200.0,0.0002451,2]
[389810098,1759857048759,-1000.0,0.00024521,2]
[389810099,1759857048770,-1000.0,0.00024521,2]
[389810100,1759857048780,-1000.0,0.00024521,2]
[389810101,1759857048790,-1000.0,0.00024521,2]
[389810102,1759857048801,-1000.0,0.00024521,2]
[389810103,1759857048810,-1000.0,0.00024521,2]
[389810104,1759857048820,-1000.0,0.00024521,2]
[389810106,1759857048829,-1000.0,0.00024521,2]
[389810108,1759857048839,-1015.28751069,0.00024521,2]
[389810110,1759857048848,-1000.0,0.00024521,2]
[389810112,1759857048858,-1000.0,0.00024521,2]
[389810114,1759857048868,-1000.0,0.00024521,2]
[389810116,1759857048877,-1000.0,0.00024521,2]
[389810118,1759857048886,-1000.0,0.00024521,2]
[389810119,1759857048896,-1000.0,0.00024521,2]
[389810121,1759857048905,-1000.0,0.00024521,2]
[389810123,1759857048914,-1000.0,0.00024521,2]
[389810125,1759857048923,-1000.0,0.00024521,2]
[389810127,1759857048932,-297.79577032,0.00024521,2]
[389810129,1759857048941,-1000.0,0.00024521,2]
[389810131,1759857048950,-1000.0,0.00024521,2]
[389810133,1759857048959,-1000.0,0.00024521,2]
[389810135,1759857048969,-1000.0,0.00024521,2]
[389810137,1759857048978,-1000.0,0.00024521,2]
[389810139,1759857048988,-1000.0,0.00024521,2]
[389810141,1759857048997,-1000.0,0.00024521,2]
[389810143,1759857049007,-1000.0,0.00024521,2]
[389810145,1759857049016,-1000.0,0.00024521,2]
[389810147,1759857049025,-213.64385673,0.00024521,2]
[389810149,1759857049034,-1000.0,0.00024521,2]
[389810151,1759857049044,-1000.0,0.00024521,2]
[389810153,1759857049053,-1000.0,0.00024521,2]
[389810155,1759857049062,-1000.0,0.00024521,2]
[389810157,1759857049071,-1000.0,0.00024521,2]
[389810159,1759857049080,-1000.0,0.00024521,2]
[389810160,1759857049089,-1000.0,0.00024521,2]
[389810161,1759857049097,-1000.0,0.00024521,2]
[389810162,1759857049107,-1000.0,0.00024521,2]
[389810163,1759857049116,-1076.27279867,0.00024521,2]
[389810164,1759857049125,-1000.0,0.00024521,2]
[389810165,1759857049134,-1000.0,0.00024521,2]
[389810166,1759857049142,-1000.0,0.00024521,2]
[389810167,1759857049151,-1000.0,0.00024521,2]
[389810168,1759857049160,-1000.0,0.00024521,2]
[389810169,1759857049169,-537.51470739,0.00024521,2]
[389810170,1759857049178,-151.0,0.00024521,7]
[389810171,1759857049187,-477.682751,0.00024521,7]
[389810172,1759857049195,-477.682751,0.00024521,7]
[389810173,1759857049204,-192.316681,0.00024521,7]
[389810174,1759857049212,-477.682751,0.00024521,7]
[389810175,1759857049222,-192.316681,0.00024521,7]
[389810176,1759857049231,-477.682751,0.00024521,7]
[389810177,1759857049240,-192.316681,0.00024521,7]
[389810178,1759857049249,-192.316681,0.00024521,7]
[389810179,1759857049258,-304.14148,0.00024521,7]
[389810180,1759857049267,-304.14148,0.00024521,7]
[389810181,1759857049275,-304.14148,0.00024521,7]
[389810182,1759857049284,-304.14148,0.00024521,7]
[389810183,1759857049293,-156.136887,0.00024521,7]
[389810184,1759857049303,-156.136887,0.00024521,7]
[389810185,1759857049311,-156.136887,0.00024521,7]
[389810186,1759857049320,-156.136887,0.00024521,7]
[389810187,1759857049329,-151.0,0.00024521,7]
[389810188,1759857049338,-242.588231,0.00024521,7]
[389810189,1759857049347,-242.588231,0.00024521,7]
[389810190,1759857049355,-242.588231,0.00024521,7]
[389810191,1759857049364,-242.588231,0.00024521,7]
[389810192,1759857049373,-151.0,0.00024521,7]
[389810193,1759857049382,-2166.917464,0.00024521,7]
[389810194,1759857049391,-261.594123,0.00024521,7]
[389810195,1759857049399,-2166.917464,0.00024521,7]
[389810196,1759857049408,-261.594123,0.00024521,7]
[389810197,1759857049417,-2166.917464,0.00024521,7]
[389810198,1759857049425,-261.594123,0.00024521,7]
[389810199,1759857049435,-2166.917464,0.00024521,7]
[389810200,1759857049446,-261.594123,0.00024521,7]
[389810201,1759857049456,-338.603931,0.00024521,7]
[389810202,1759857049465,-151.0,0.00024521,7]
[389810203,1759857049475,-338.603931,0.00024521,7]
[389810204,1759857049484,-151.0,0.00024521,7]
[389810205,1759857049494,-338.603931,0.00024521,7]
[389810206,1759857049503,-686.875483,0.00024521,7]
[389810207,1759857049513,-151.0,0.00024521,7]
[389810208,1759857049522,-338.603931,0.00024521,7]
[389810209,1759857049531,-686.875483,0.00024521,7]
[389810210,1759857049541,-151.0,0.00024521,7]
[389810211,1759857049550,-686.875483,0.00024521,7]
[389810212,1759857049559,-151.0,0.00024521,7]
[389810213,1759857049567,-686.875483,0.00024521,7]
[389810214,1759857049576,-151.0,0.00024521,7]
[389810215,1759857049585,-1760.881411,0.00024521,7]
[389810216,1759857049594,-178.29825,0.00024521,7]
[389810217,1759857049603,-151.0,0.00024521,7]
[389810218,1759857049613,-1760.881411,0.00024521,7]
[389810219,1759857049622,-717.189875,0.00024521,7]
[389810220,1759857049631,-151.0,0.00024521,7]
[389810221,1759857049640,-1760.881411,0.00024521,7]
[389810222,1759857049649,-717.189875,0.00024521,7]
[389810223,1759857049658,-151.0,0.00024521,7]
[389810224,1759857049667,-1760.881411,0.00024521,7]
[389810225,1759857049676,-717.189875,0.00024521,7]
[389810227,1759857049685,-717.189875,0.00024521,7]
[389810228,1759857049695,-356.531833,0.00024521,7]
[389810230,1759857049704,-298.911972,0.00024521,7]
[389810232,1759857049713,-151.0,0.00024521,7]
[389810234,1759857049723,-234.063355,0.00024521,7]
[389810236,1759857049732,-356.531833,0.00024521,7]
[389810238,1759857049741,-298.911972,0.00024521,7]
[389810239,1759857049750,-234.063355,0.00024521,7]
[389810241,1759857049760,-356.531833,0.00024521,7]
[389810243,1759857049769,-298.911972,0.00024521,7]
[389810245,1759857049779,-234.063355,0.00024521,7]
[389810247,1759857049788,-356.531833,0.00024521,7]
[389810249,1759857049798,-298.911972,0.00024521,7]
[389810251,1759857049807,-234.063355,0.00024521,7]
[389810253,1759857049816,-151.0,0.00024521,7]
[389810255,1759857049827,-151.0,0.00024521,7]
[389810257,1759857049836,-151.0,0.00024521,7]
[389810259,1759857049846,-596.654506,0.00024521,7]
[389810261,1759857049855,-596.654506,0.00024521,7]
[389810263,1759857049864,-596.654506,0.00024521,7]
[389810265,1759857049873,-596.654506,0.00024521,7]
[389810267,1759857049883,-151.0,0.00024521,7]
[389810269,1759857049892,-151.0,0.00024521,7]
[389810271,1759857049902,-160.337621,0.00024521,7]
[389810273,1759857049910,-151.0,0.00024521,7]
[389810274,1759857049920,-151.0,0.00024521,7]
[389810276,1759857049929,-151.0,0.00024521,7]
[389810278,1759857049939,-151.0,0.00024521,7]
[389810280,1759857049948,-299.547968,0.00024521,7]
[389810282,1759857049958,-151.0,0.00024521,7]
[389810284,1759857049967,-151.0,0.00024521,7]
[389810286,1759857049977,-151.0,0.00024521,7]
[389810288,1759857049986,-151.0,0.00024521,7]
[389810290,1759857049996,-151.0,0.00024521,7]
[389810292,1759857050007,-540.743678,0.00024521,7]
[389810294,1759857050016,-540.743678,0.00024521,7]
[389810296,1759857050026,-540.743678,0.00024521,7]
[389810298,1759857050035,-540.743678,0.00024521,7]
[389810300,1759857050044,-187.476666,0.00024521,7]
[389810302,1759857050054,-151.0,0.00024521,7]
[389810304,1759857050063,-187.476666,0.00024521,7]
[389810306,1759857050073,-260.434702,0.00024521,7]
[389810308,1759857050083,-151.0,0.00024521,7]
[389810310,1759857050092,-187.476666,0.00024521,7]
[389810312,1759857050102,-260.434702,0.00024521,7]
[389810314,1759857050111,-10000.0,0.00024521,7]
[389810316,1759857050121,-187.476666,0.00024521,7]
[389810318,1759857050130,-260.434702,0.00024521,7]
[389810320,1759857050139,-10000.0,0.00024521,7]
[389810322,1759857050148,-260.434702,0.00024521,7]
[389810324,1759857050158,-10000.0,0.00024521,7]
[389810326,1759857050167,-10000.0,0.00024521,7]
[389810328,1759857050176,-10000.0,0.00024521,7]
[389810330,1759857050185,-266.71418,0.00024521,7]
[389810332,1759857050194,-266.71418,0.00024521,7]
[389810334,1759857050203,-266.71418,0.00024521,7]
[389810336,1759857050212,-266.71418,0.00024521,7]
[389810338,1759857050221,-230.591713,0.00024521,7]
[389810340,1759857050229,-230.591713,0.00024521,7]
[389810342,1759857050239,-230.591713,0.00024521,7]
[389810344,1759857050248,-230.591713,0.00024521,7]
[389810346,1759857050258,-151.0,0.00024521,7]
[389810348,1759857050267,-151.0,0.00024521,7]
[389810350,1759857050276,-151.0,0.00024521,7]
[389810352,1759857050285,-151.0,0.00024521,7]
[389810354,1759857050295,-151.0,0.00024521,7]
[389810356,1759857050304,-151.0,0.00024521,7]
[389810358,1759857050314,-252.263206,0.00024521,7]
[389810360,1759857050324,-151.0,0.00024521,7]
[389810362,1759857050333,-368.524893,0.00024521,7]
[389810364,1759857050342,-151.0,0.00024521,7]
[389810366,1759857050351,-368.524893,0.00024521,7]
[389810368,1759857050360,-368.524893,0.00024521,7]
[389810370,1759857050370,-151.0,0.00024521,7]
[389810372,1759857050379,-368.524893,0.00024521,7]
[389810374,1759857050388,-1347.875389,0.00024521,7]
[389810376,1759857050398,-151.0,0.00024521,7]
[389810378,1759857050408,-1347.875389,0.00024521,7]
[389810380,1759857050417,-439.288192,0.00024521,7]
[389810382,1759857050425,-1347.875389,0.00024521,7]
[389810384,1759857050439,-439.288192,0.00024521,7]
[389810386,1759857050449,-1347.875389,0.00024521,7]
[389810388,1759857050458,-439.288192,0.00024521,7]
[389810390,1759857050467,-151.0,0.00024521,7]
[389810392,1759857050476,-439.288192,0.00024521,7]
[389810394,1759857050487,-151.0,0.00024521,7]
[389810396,1759857050496,-151.0,0.00024521,7]
[389810398,1759857050505,-151.0,0.00024521,7]
[389810400,1759857050517,-514.956947,0.00024521,7]
[389810402,1759857050526,-514.956947,0.00024521,7]
[389810404,1759857050535,-514.956947,0.00024521,7]
[389810406,1759857050545,-160.70339,0.00024521,7]
[389810408,1759857050554,-151.0,0.00024521,7]
[389810410,1759857050563,-514.956947,0.00024521,7]
[389810412,1759857050572,-160.70339,0.00024521,7]
[389810414,1759857050582,-151.0,0.00024521,7]
[389810416,1759857050592,-160.70339,0.00024521,7]
[389810418,1759857050602,-153.151123,0.00024536,7]
[389810420,1759857050611,-500.0,0.00024557,2]
[389810422,1759857050620,-760.0,0.0002456,2]
[389810424,1759857050630,-151.0,0.000246,7]
[389810426,1759857050639,-582.740774,0.000246,7]
[389810428,1759857050649,-582.740774,0.000246,7]
[389810430,1759857050659,-582.740774,0.000246,7]
[389810432,1759857050669,-582.740774,0.000246,7]
[389810434,1759857050679,-151.0,0.000246,7]
[389810436,1759857050688,-151.0,0.000246,7]
[389810438,1759857050698,-151.0,0.000246,7]
[389810440,1759857050707,-151.0,0.000246,7]
[389810442,1759857050717,-151.0,0.000246,7]
[389810444,1759857050727,-240.5916,0.000246,2]
[389810446,1759857050737,-151.0,0.000246,7]
[389810448,1759857050747,-240.5916,0.000246,2]
[389810451,1759857050757,-151.0,0.000246,7]
[389810453,1759857050767,-240.5916,0.000246,2]
[389810455,1759857050776,-151.0,0.000246,7]
[389810457,1759857050785,-151.0,0.000246,7]
[389810459,1759857050795,-240.5916,0.000246,2]
[389810461,1759857050804,-151.0,0.000246,7]
[389810463,1759857050814,-151.0,0.000246,7]
[389810465,1759857050823,-253.612605,0.000246,7]
[389810467,1759857050833,-151.0,0.000246,7]
[389810469,1759857050842,-163.791041,0.000246,7]
[389810471,1759857050852,-163.791041,0.000246,7]
[389810473,1759857050862,-151.0,0.000246,7]
[389810475,1759857050872,-163.791041,0.000246,7]
[389810477,1759857050881,-163.791041,0.000246,7]
[389810479,1759857050891,-151.0,0.000246,7]
[389810481,1759857050900,-151.0,0.000246,7]
[389810483,1759857050910,-151.0,0.000246,7]
[389810485,1759857050920,-151.0,0.000246,7]
[389810487,1759857050930,-192.047637,0.000246,7]
[389810489,1759857050940,-151.0,0.000246,7]
[389810491,1759857050950,-192.047637,0.000246,7]
[389810492,1759857050959,-151.0,0.000246,7]
[389810493,1759857050970,-192.047637,0.000246,7]
[389810494,1759857050979,-192.047637,0.000246,7]
[389810495,1759857050988,-497.569899,0.000246,7]
[389810496,1759857050998,-497.569899,0.000246,7]
[389810497,1759857051007,-497.569899,0.000246,7]
[389810498,1759857051018,-233.417555,0.000246,7]
[389810499,1759857051027,-497.569899,0.000246,7]
[389810500,1759857051037,-183.812316,0.000246,7]
[389810502,1759857051047,-183.812316,0.000246,7]
[389810504,1759857051056,-183.812316,0.000246,7]
[389810506,1759857051067,-183.812316,0.000246,7]
[389810508,1759857051077,-151.0,0.000246,7]
[389810510,1759857051086,-151.0,0.000246,7]
[389810512,1759857051095,-151.0,0.000246,7]
[389810514,1759857051105,-151.0,0.000246,7]
[389810516,1759857051114,-151.0,0.000246,7]
[389810518,1759857051124,-339.819151,0.000246,7]
[389810520,1759857051133,-339.819151,0.000246,7]
[389810522,1759857051143,-339.819151,0.000246,7]
[389810525,1759857051153,-339.819151,0.000246,7]
[389810527,1759857051163,-151.0,0.000246,7]
[389810529,1759857051173,-151.0,0.000246,7]
[389810531,1759857051182,-151.0,0.000246,7]
[389810533,1759857051191,-151.0,0.000246,7]
[389810535,1759857051201,-151.0,0.000246,7]
[389810537,1759857051210,-151.0,0.000246,7]
[389810539,1759857051219,-151.0,0.000246,7]
[389810541,1759857051229,-151.0,0.000246,7]
[389810543,1759857051239,-151.0,0.000246,7]
[389810545,1759857051249,-168.119458,0.000246,7]
[389810547,1759857051259,-151.0,0.000246,7]
[389810549,1759857051268,-151.0,0.000246,7]
[389810551,1759857051278,-151.0,0.000246,7]
[389810553,1759857051288,-151.0,0.000246,7]
[389810555,1759857051297,-151.0,0.000246,7]
[389810557,1759857051306,-151.0,0.000246,7]
[389810559,1759857051315,-513.669833,0.000246,7]
[389810561,1759857051325,-151.0,0.000246,7]
[389810564,1759857051334,-513.669833,0.000246,7]
[389810566,1759857051343,-513.669833,0.000246,7]
[389810567,1759857051352,-513.669833,0.000246,7]
[389810570,1759857051361,-151.0,0.000246,7]
[389810572,1759857051371,-151.0,0.000246,7]
[389810574,1759857051380,-250.0,0.000246,10]
[389810576,1759857051390,-154995.34682834,0.0002465,2]
[389810578,1759857051399,-507.85825339,0.0002465,2]
[389810580,1759857051408,-151.0,0.0002465,7]
[389810582,1759857051417,-151.0,0.0002465,7]
[389810584,1759857051427,-153.153777,0.0002465,7]
[389810586,1759857051440,-151.0,0.0002465,7]
[389810588,1759857051450,-151.0,0.0002465,7]
[389810590,1759857051459,-151.0,0.0002465,7]
[389810592,1759857051468,-151.583957,0.0002465,7]
[389810594,1759857051479,-151.0,0.0002465,7]
[389810596,1759857051488,-151.0,0.0002465,7]
[389810598,1759857051498,-151.0,0.0002465,7]
[389810600,1759857051507,-151.0,0.0002465,7]
[389810602,1759857051518,-151.0,0.0002465,7]
[389810604,1759857051527,-151.0,0.0002465,7]
[389810606,1759857051537,-151.0,0.0002465,7]
[389810608,1759857051546,-151.0,0.0002465,7]
[389810610,1759857051556,-263.934469,0.0002465,7]
[389810612,1759857051565,-153.014661,0.0002465,7]
[389810614,1759857051575,-151.0,0.0002465,7]
[389810616,1759857051585,-153.014661,0.0002465,7]